fUST/lending_fUST_20250717
["ID","MTS","AMOUNT","RATE_DAILY","PERIOD"]
[372766621,1752754250937,-151.0,0.00020028,2]
[372766622,1752754250946,-151.0,0.00020028,2]
[372766623,1752754250955,-151.0,0.00020028,2]
[372766624,1752754250965,-151.0,0.00020028,2]
[372766625,1752754250974,-151.0,0.00020028,2]
[372766626,1752754250984,-151.0,0.00020028,2]
[372766627,1752754250996,-151.0,0.00020028,2]
[372766628,1752754251005,-151.0,0.00020028,2]
[372766629,1752754251014,-151.0,0.00020028,2]
[372766630,1752754251022,-151.0,0.00020028,2]
[372766631,1752754251031,-151.0,0.00020028,2]
[372766632,1752754251041,-151.0,0.00020028,2]
[372766633,1752754251050,-151.0,0.00020028,2]
[372766634,1752754251058,-151.0,0.00020028,2]
[372766635,1752754251069,-151.0,0.00020028,2]
[372766636,1752754251078,-159.14388846,0.00020028,2]
[372766637,1752754251087,-151.0,0.00020028,2]
[372766638,1752754251096,-151.0,0.00020028,2]
[372766639,1752754251105,-151.0,0.00020028,2]
[372766640,1752754251114,-151.0,0.00020028,2]
[372766641,1752754251124,-151.0,0.00020028,2]
[372766642,1752754251134,-151.0,0.00020028,2]
[372766643,1752754251144,-25000.0,0.00020028,2]
[372766644,1752754251155,-151.0,0.00020028,2]
[372766645,1752754251164,-151.0,0.00020028,2]
[372766646,1752754251173,-218.052301,0.00020028,2]
[372766647,1752754251183,-218.052301,0.00020028,2]
[372766648,1752754251192,-151.0,0.00020028,2]
[372766649,1752754251202,-151.0,0.00020028,2]
[372766650,1752754251211,-1000.0,0.00020059,2]
[372766651,1752754251220,-3942.302754,0.00020083,2]
[372766652,1752754251230,-600.14,0.00020087,2]
[372766653,1752754251239,-558.96,0.00020087,2]
[372766654,1752754251248,-460.0,0.00020087,2]
[372766655,1752754251258,-460.0,0.00020087,2]
[372766656,1752754251267,-1282.41,0.00020087,2]
[372766657,1752754251276,-152.97,0.00020087,2]
[372766658,1752754251285,-652.5,0.00020087,2]
[372766659,1752754251294,-500.0,0.00020088,2]
[372766660,1752754251303,-500.0,0.00020088,2]
[372766661,1752754251314,-501.1404774,0.00020088,2]
[372766662,1752754251324,-1266.0,0.00020092,2]
[372766663,1752754251335,-1022.0,0.00020092,2]
[372766664,1752754251345,-500.0,0.00020092,2]
[372766665,1752754251355,-151.0,0.000201,4]
[372766666,1752754251366,-10500.19860859,0.00020107,2]
[372766667,1752754251377,-800.0,0.00020112,2]
[372766668,1752754251388,-724.31412617,0.00020138,2]
[372766669,1752754251397,-500.0,0.00020156,2]
[372766670,1752754251407,-734.04782,0.00020187,2]
[372766671,1752754251417,-2195.72621997,0.00020254,2]
[372766672,1752754251427,-1473.51,0.00020256,2]
[372766673,1752754251436,-987.82,0.00020258,2]
[372766674,1752754251446,-800.0,0.00020258,2]
[372766675,1752754251456,-2908.46,0.0002026,2]
[372766676,1752754251465,-2337.66,0.0002026,2]
[372766677,1752754251475,-559.18,0.0002026,2]
[372766678,1752754251484,-1832.13,0.0002026,2]
[372766679,1752754251494,-2159.31,0.0002026,2]
[372766680,1752754251503,-811.2,0.0002026,2]
[372766681,1752754251513,-501.94,0.0002026,2]
[372766682,1752754251523,-1218.49,0.0002026,2]
[372766683,1752754251532,-687.59,0.0002026,2]
[372766684,1752754251541,-460.0,0.0002026,2]
[372766685,1752754251550,-574.9,0.00020262,2]
[372766686,1752754251559,-460.0,0.00020262,2]
[372766687,1752754251569,-815.74,0.00020262,2]
[372766688,1752754251578,-460.0,0.00020262,2]
[372766689,1752754251587,-460.0,0.00020262,2]
[372766690,1752754251597,-594.5,0.00020262,2]
[372766691,1752754251606,-241.88,0.00020262,2]
[372766692,1752754251615,-460.0,0.00020262,2]
[372766693,1752754251624,-503.41,0.00020262,2]
[372766694,1752754251633,-151.0,0.00020262,2]
[372766695,1752754251642,-460.0,0.00020264,2]
[372766696,1752754251651,-3995.17,0.00020264,2]
[372766697,1752754251660,-1129.16,0.00020264,2]
[372766698,1752754251669,-460.0,0.00020264,2]
[372766699,1752754251679,-527.51,0.00020264,2]
[372766700,1752754251688,-938.31,0.00020264,2]
[372766701,1752754251697,-483.68,0.00020264,2]
[372766702,1752754251706,-977.81,0.00020265,2]
[372766703,1752754251715,-1919.33,0.00020265,2]
[372766704,1752754251724,-460.0,0.00020265,2]
[372766705,1752754251734,-1168.26,0.00020265,2]
[372766706,1752754251743,-4148.36,0.00020265,2]
[372766707,1752754251752,-360.0,0.00020265,2]
[372766708,1752754251761,-501.50123837,0.00020268,2]
[372766709,1752754251770,-250.0,0.00020284,2]
[372766710,1752754251779,-306.0,0.00020331,3]
[372766711,1752754251788,-320.9233043,0.00020333,2]
[372766712,1752754251798,-160.0,0.0002035,3]
[372766713,1752754251807,-214.44804168,0.0002035,3]
[372766714,1752754251818,-12607.95677342,0.0002035,3]
[372766715,1752754251828,-160.0,0.0002035,3]
[372766716,1752754251838,-476.16111942,0.0002035,3]
[372766717,1752754251848,-600.14,0.00020361,2]
[372766718,1752754251857,-558.96,0.00020361,2]
[372766719,1752754251867,-460.0,0.00020361,2]
[372766720,1752754251878,-460.0,0.00020361,2]
[372766721,1752754251887,-1282.41,0.00020361,2]
[372766722,1752754251900,-652.5,0.00020361,2]
[372766723,1752754251910,-1266.0,0.00020366,2]
[372766724,1752754251920,-1022.0,0.00020366,2]
[372766725,1752754251930,-208.77817653,0.00020366,2]
[372766726,1752754251939,-159.7589233,0.00020383,2]
[372766727,1752754251949,-10500.19860859,0.00020383,3]
[372766728,1752754251959,-500.0,0.00020422,2]
[372766729,1752754251969,-707.20524822,0.00020471,2]
[372766730,1752754251979,-151.0,0.00020519,2]
[372766731,1752754251991,-151.0,0.00020519,2]
[372766732,1752754252001,-151.0,0.00020519,2]
[372766733,1752754252011,-556.411943,0.00020519,2]
[372766734,1752754252020,-556.411943,0.00020519,2]
[372766735,1752754252030,-1473.51,0.0002053,2]
[372766736,1752754252039,-987.82,0.00020532,2]
[372766737,1752754252049,-2908.46,0.00020534,2]
[372766738,1752754252059,-2337.66,0.00020534,2]
[372766739,1752754252071,-559.18,0.00020534,2]
[372766740,1752754252081,-1832.13,0.00020534,2]
[372766741,1752754252091,-2159.31,0.00020534,2]
[372766742,1752754252101,-811.2,0.00020534,2]
[372766743,1752754252111,-501.94,0.00020534,2]
[372766744,1752754252120,-1218.49,0.00020534,2]
[372766745,1752754252130,-687.59,0.00020534,2]
[372766746,1752754252140,-460.0,0.00020534,2]
[372766747,1752754252149,-574.9,0.00020536,2]
[372766748,1752754252159,-460.0,0.00020536,2]
[372766749,1752754252168,-815.74,0.00020536,2]
[372766750,1752754252178,-460.0,0.00020536,2]
[372766751,1752754252189,-460.0,0.00020536,2]
[372766752,1752754252199,-594.5,0.00020536,2]
[372766753,1752754252209,-460.0,0.00020536,2]
[372766754,1752754252219,-503.41,0.00020536,2]
[372766755,1752754252231,-151.0,0.00020538,2]
[372766756,1752754252241,-151.0,0.00020538,2]
[372766757,1752754252251,-151.0,0.00020538,2]
[372766758,1752754252260,-151.0,0.00020538,2]
[372766759,1752754252269,-298.64405,0.00020538,2]
[372766760,1752754252279,-460.0,0.00020538,2]
[372766761,1752754252288,-3995.17,0.00020538,2]
[372766762,1752754252297,-1129.16,0.00020538,2]
[372766763,1752754252307,-460.0,0.00020538,2]
[372766764,1752754252318,-527.51,0.00020538,2]
[372766765,1752754252327,-938.31,0.00020538,2]
[372766766,1752754252337,-483.68,0.00020538,2]
[372766767,1752754252347,-977.81,0.00020539,2]
[372766768,1752754252356,-1919.33,0.00020539,2]
[372766769,1752754252366,-460.0,0.00020539,2]
[372766770,1752754252375,-1168.26,0.00020539,2]
[372766771,1752754252385,-4148.36,0.00020539,2]
[372766772,1752754252395,-151.0,0.00020554,2]
[372766773,1752754252404,-587.0,0.00020558,2]
[372766774,1752754252414,-1000.0,0.00020575,2]
[372766775,1752754252423,-1500.0,0.00020607,2]
[372766776,1752754252433,-600.14,0.00020635,2]
[372766777,1752754252443,-558.96,0.00020635,2]
[372766778,1752754252597,-532.48,0.00020635,2]
[372766779,1752754252606,-460.0,0.00020635,2]
[372766780,1752754252616,-1282.41,0.00020635,2]
[372766781,1752754252626,-652.5,0.00020635,2]
[372766782,1752754252635,-1000.0,0.00020636,2]
[372766783,1752754252644,-500.0,0.00020636,2]
[372766784,1752754252653,-948.705337,0.00020639,2]
[372766785,1752754252663,-948.705337,0.00020639,2]
[372766786,1752754252672,-205.401856,0.00020639,2]
[372766787,1752754252682,-205.401856,0.00020639,2]
[372766788,1752754252691,-151.0,0.00020639,2]
[372766789,1752754252702,-151.0,0.00020639,2]
[372766790,1752754252711,-161.343582,0.00020639,2]
[372766791,1752754252721,-1266.0,0.0002064,2]
[372766792,1752754252730,-1022.0,0.0002064,2]
[372766793,1752754252739,-514.1382,0.0002064,2]
[372766794,1752754252749,-514.1382,0.0002064,2]
[372766795,1752754252759,-151.0,0.00020641,2]
[372766796,1752754252768,-151.0,0.00020641,2]
[372766797,1752754252779,-151.0,0.00020641,2]
[372766798,1752754252788,-10500.19860859,0.00020659,3]
[372766799,1752754252798,-455.95642,0.00020659,3]
[372766800,1752754252807,-153.0,0.000207,2]
[372766801,1752754252817,-200.6701932,0.00020704,2]
[372766802,1752754252827,-306.0,0.00020705,3]
[372766803,1752754252836,-23139.88114236,0.00020706,2]
[372766804,1752754252846,-151.0,0.00020713,2]
[372766805,1752754252856,-209.02065604,0.00020728,2]
[372766806,1752754252867,-500.0,0.00020728,2]
[372766807,1752754252878,-500.0,0.00020728,2]
[372766808,1752754252887,-500.0,0.00020728,2]
[372766809,1752754252896,-500.0,0.00020728,2]
[372766810,1752754252906,-500.0,0.00020728,2]
[372766811,1752754252915,-500.0,0.00020728,2]
[372766812,1752754252924,-500.0,0.00020728,2]
[372766813,1752754252933,-2351.0,0.00020762,2]
[372766814,1752754252946,-500.0,0.00020769,2]
[372766815,1752754252959,-463.34381087,0.00020769,2]
[372766816,1752754252970,-500.0,0.00020769,2]
[372766817,1752754252979,-2155.0,0.00020801,2]
[372766818,1752754252991,-1473.51,0.00020804,2]
[372766819,1752754253000,-800.0,0.00020806,2]
[372766820,1752754253009,-987.82,0.00020806,2]
[372766821,1752754253018,-2908.46,0.00020808,2]
[372766822,1752754253027,-2337.66,0.00020808,2]
[372766823,1752754253037,-559.18,0.00020808,2]
[372766824,1752754253046,-1832.13,0.00020808,2]
[372766825,1752754253055,-2159.31,0.00020808,2]
[372766826,1752754253065,-811.2,0.00020808,2]
[372766827,1752754253074,-501.94,0.00020808,2]
[372766828,1752754253083,-1218.49,0.00020808,2]
[372766829,1752754253092,-687.59,0.00020808,2]
[372766830,1752754253101,-444.61273542,0.00020808,2]
[372766831,1752754253111,-574.9,0.0002081,2]
[372766832,1752754253120,-460.0,0.0002081,2]
[372766833,1752754253129,-815.74,0.0002081,2]
[372766834,1752754253138,-460.0,0.0002081,2]
[372766835,1752754253147,-460.0,0.0002081,2]
[372766836,1752754253157,-594.5,0.0002081,2]
[372766837,1752754253167,-460.0,0.0002081,2]
[372766838,1752754253176,-503.41,0.0002081,2]
[372766839,1752754253185,-455.95642,0.00020811,2]
[372766840,1752754253194,-460.0,0.00020812,2]
[372766841,1752754253203,-3995.17,0.00020812,2]
[372766842,1752754253213,-1129.16,0.00020812,2]
[372766843,1752754253222,-460.0,0.00020812,2]
[372766844,1752754253232,-527.51,0.00020812,2]
[372766845,1752754253241,-938.31,0.00020812,2]
[372766846,1752754253250,-483.68,0.00020812,2]
[372766847,1752754253260,-977.81,0.00020813,2]
[372766848,1752754253270,-1919.33,0.00020813,2]
[372766849,1752754253279,-460.0,0.00020813,2]
[372766850,1752754253288,-1168.26,0.00020813,2]
[372766851,1752754253298,-4148.36,0.00020813,2]
[372766852,1752754253307,-460.0,0.00020813,2]
[372766853,1752754253317,-1055.31806446,0.00020845,2]
[372766854,1752754253326,-600.14,0.00020909,2]
[372766855,1752754253336,-558.96,0.00020909,2]
[372766856,1752754253345,-419.9122192,0.00020909,2]
[372766857,1752754253355,-1282.41,0.00020909,2]
[372766858,1752754253365,-652.5,0.00020909,2]
[372766859,1752754253375,-1266.0,0.00020914,2]
[372766860,1752754253384,-1022.0,0.00020914,2]
[372766861,1752754253394,-10500.19860859,0.00020934,4]
[372766862,1752754253403,-151.0,0.00020935,2]
[372766863,1752754253413,-151.0,0.00020935,2]
[372766864,1752754253422,-218.052301,0.00020935,2]
[372766865,1752754253432,-218.052301,0.00020935,2]
[372766866,1752754253441,-1300.0,0.00020961,2]
[372766867,1752754253451,-455.95642,0.00021072,4]
[372766868,1752754253461,-1473.51,0.00021078,2]
[372766869,1752754253470,-306.0,0.00021079,4]
[372766870,1752754253479,-987.82,0.0002108,2]
[372766871,1752754253488,-151.0,0.0002108,2]
[372766872,1752754253498,-2908.46,0.00021082,2]
[372766873,1752754253507,-2337.66,0.00021082,2]
[372766874,1752754253517,-559.18,0.00021082,2]
[372766875,1752754253526,-1832.13,0.00021082,2]
[372766876,1752754253535,-2159.31,0.00021082,2]
[372766877,1752754253545,-811.2,0.00021082,2]
[372766878,1752754253554,-501.94,0.00021082,2]
[372766879,1752754253563,-1218.49,0.00021082,2]
[372766880,1752754253573,-151.0,0.00021082,2]
[372766881,1752754253582,-687.59,0.00021082,2]
[372766882,1752754253591,-574.9,0.00021084,2]
[372766883,1752754253601,-460.0,0.00021084,2]
[372766884,1752754253615,-815.74,0.00021084,2]
[372766885,1752754253629,-460.0,0.00021084,2]
[372766886,1752754253639,-460.0,0.00021084,2]
[372766887,1752754253648,-594.5,0.00021084,2]
[372766888,1752754253659,-460.0,0.00021084,2]
[372766889,1752754253668,-503.41,0.00021084,2]
[372766890,1752754253678,-151.200515,0.00021086,2]
[372766891,1752754253687,-151.0,0.00021086,2]
[372766892,1752754253696,-935.944568,0.00021086,2]
[372766893,1752754253706,-935.944568,0.00021086,2]
[372766894,1752754253715,-460.0,0.00021086,2]
[372766895,1752754253724,-3995.17,0.00021086,2]
[372766896,1752754253734,-1129.16,0.00021086,2]
[372766897,1752754253744,-460.0,0.00021086,2]
[372766898,1752754253753,-527.51,0.00021086,2]
[372766899,1752754253763,-938.31,0.00021086,2]
[372766900,1752754253772,-483.68,0.00021086,2]
[372766901,1752754253782,-977.81,0.00021087,2]
[372766902,1752754253792,-1919.33,0.00021087,2]
[372766903,1752754253802,-460.0,0.00021087,2]
[372766904,1752754253811,-1168.26,0.00021087,2]
[372766905,1752754253823,-4148.36,0.00021087,2]
[372766906,1752754253831,-1500.0,0.00021123,2]
[372766907,1752754253840,-839.0,0.00021126,2]
[372766908,1752754253849,-968.0,0.00021146,2]
[372766909,1752754253858,-1500.0,0.00021155,2]
[372766910,1752754253867,-600.14,0.00021183,2]
[372766911,1752754253877,-558.96,0.00021183,2]
[372766912,1752754253886,-1282.41,0.00021183,2]
[372766913,1752754253896,-652.5,0.00021183,2]
[372766914,1752754253905,-1500.0,0.00021184,2]
[372766915,1752754253915,-1071.618,0.00021185,2]
[372766916,1752754253925,-1266.0,0.00021188,2]
[372766917,1752754253934,-1022.0,0.00021188,2]
[372766918,1752754253944,-151.0,0.00021189,2]
[372766919,1752754253954,-302.576658,0.00021189,2]
[372766920,1752754253963,-302.576658,0.00021189,2]
[372766921,1752754253973,-10500.19860859,0.0002121,4]
[372766922,1752754253982,-500.0,0.00021212,2]
[372766923,1752754253995,-2195.72621997,0.00021256,2]
[372766924,1752754254004,-1000.0,0.00021276,2]
[372766925,1752754254014,-540.13657752,0.00021276,2]
[372766926,1752754254023,-1000.0,0.00021276,2]
[372766927,1752754254033,-1000.0,0.00021276,2]
[372766928,1752754254043,-348.63922981,0.00021276,2]
[372766929,1752754254052,-1240.4865399,0.00021295,2]
[372766930,1752754254060,-4956.98421344,0.00021295,2]
[372766931,1752754254071,-423.60215662,0.00021295,2]
[372766932,1752754254081,-1694.40862647,0.00021295,2]
[372766933,1752754254091,-3812.41940955,0.00021295,2]
[372766934,1752754254099,-6777.63450587,0.00021295,2]
[372766935,1752754254109,-10590.05391541,0.00021295,2]
[372766936,1752754254119,-4015.3536666,0.00021295,2]
[372766937,1752754254129,-664.632091,0.00021295,2]
[372766938,1752754254138,-664.632091,0.00021295,2]
[372766939,1752754254148,-1000.0,0.00021317,2]
[372766940,1752754254158,-1473.51,0.00021352,2]
[372766941,1752754254168,-987.82,0.00021354,2]
[372766942,1752754254179,-2908.46,0.00021356,2]
[372766943,1752754254189,-2337.66,0.00021356,2]
[372766944,1752754254199,-559.18,0.00021356,2]
[372766945,1752754254210,-1832.13,0.00021356,2]
[372766946,1752754254220,-2159.31,0.00021356,2]
[372766947,1752754254231,-811.2,0.00021356,2]
[372766948,1752754254240,-501.94,0.00021356,2]
[372766949,1752754254250,-1218.49,0.00021356,2]
[372766950,1752754254260,-687.59,0.00021356,2]
[372766951,1752754254269,-574.9,0.00021358,2]
[372766952,1752754254279,-460.0,0.00021358,2]
[372766953,1752754254289,-815.74,0.00021358,2]
[372766954,1752754254299,-460.0,0.00021358,2]
[372766955,1752754254308,-460.0,0.00021358,2]
[372766956,1752754254319,-594.5,0.00021358,2]
[372766957,1752754254329,-460.0,0.00021358,2]
[372766958,1752754254339,-503.41,0.00021358,2]
[372766959,1752754254349,-151.0,0.0002136,2]
[372766960,1752754254359,-151.0,0.0002136,2]
[372766961,1752754254368,-151.0,0.0002136,2]
[372766962,1752754254378,-460.0,0.0002136,2]
[372766963,1752754254388,-3995.17,0.0002136,2]
[372766964,1752754254397,-1129.16,0.0002136,2]
[372766965,1752754254407,-460.0,0.0002136,2]
[372766966,1752754254417,-556.411943,0.0002136,2]
[372766967,1752754254427,-556.411943,0.0002136,2]
[372766968,1752754254437,-527.51,0.0002136,2]
[372766969,1752754254446,-938.31,0.0002136,2]
[372766970,1752754254456,-483.68,0.0002136,2]
[372766971,1752754254466,-977.81,0.00021361,2]
[372766972,1752754254475,-1919.33,0.00021361,2]
[372766973,1752754254485,-460.0,0.00021361,2]
[372766974,1752754254495,-1168.26,0.00021361,2]
[372766975,1752754254504,-4148.36,0.00021361,2]
[372766976,1752754254514,-560.0,0.00021361,2]
[372766977,1752754254523,-215.0738,0.00021397,2]
[372766978,1752754254533,-151.0,0.000214,2]
[372766979,1752754254543,-151.0,0.000214,2]
[372766980,1752754254553,-151.0,0.000214,2]
[372766981,1752754254563,-151.0,0.000214,2]
[372766982,1752754254574,-12651.80808356,0.000214,2]
[372766983,1752754254584,-306.0,0.00021453,4]
[372766984,1752754254594,-600.14,0.00021456,2]
[372766985,1752754254603,-558.96,0.00021456,2]
[372766986,1752754254613,-1282.41,0.00021456,2]
[372766987,1752754254623,-652.5,0.00021456,2]
[372766988,1752754254632,-1266.0,0.00021462,2]
[372766989,1752754254642,-1022.0,0.00021462,2]
[372766990,1752754254652,-800.0,0.00021464,2]
[372766991,1752754254662,-500.0,0.00021473,2]
[372766992,1752754254671,-500.0,0.00021473,2]
[372766993,1752754254681,-500.0,0.00021473,2]
[372766994,1752754254691,-500.0,0.00021473,2]
[372766995,1752754254700,-500.0,0.00021473,2]
[372766996,1752754254710,-500.0,0.00021473,2]
[372766997,1752754254720,-455.95642,0.00021486,3]
[372766998,1752754254729,-10500.19860859,0.00021486,5]
[372766999,1752754254739,-500.0,0.00021496,2]
[372767000,1752754254748,-256624.2773701,0.000215,2]
[372767001,1752754254758,-621.6233864,0.000215,4]
[372767002,1752754254767,-10315.58859926,0.000215,2]
[372767003,1752754254777,-67052.88103776,0.000215,2]
[372767004,1752754254900,-980.0249661,0.000215,2]
[372767005,1752754254912,-2547.20648903,0.000215,2]
[372767006,1752754254924,-1563.96716672,0.000215,2]
[372767007,1752754255033,-575.62,0.00019714,2]
[372767008,1752754255043,-575.62,0.00019988,2]
[372767009,1752754255053,-575.62,0.00020262,2]
[372767010,1752754255062,-575.62,0.00020536,2]
[372767011,1752754255074,-9847.52,0.00020576,2]
[372767012,1752754255420,-1136.45952084,0.00020576,2]
[372767013,1752754255676,-397.59519644,0.00017242,2]
[372767014,1752754255687,-163.81938165,0.00017242,2]
[372767015,1752754255698,-500.0,0.00017242,2]
[372767016,1752754255710,-460.0,0.00017251,2]
[372767017,1752754255727,-302.84,0.00017525,2]
[372767018,1752754255739,-5409.18542192,0.00020576,2]
[372767019,1752754255898,-500.0,0.00017242,2]
[372767020,1752754255908,-500.0,0.00017242,2]
[372767021,1752754255918,-460.0,0.00017347,2]
[372767022,1752754255928,-460.0,0.00017621,2]
[372767023,1752754255938,-460.0,0.00017895,2]
[372767024,1752754255948,-151.0,0.00020028,2]
[372767025,1752754255957,-8606.83505724,0.00020576,2]
[372767026,1752754255967,-575.62,0.0002081,2]
[372767027,1752754255977,-151.0,0.00020935,2]
[372767028,1752754255987,-575.62,0.00021084,2]
[372767029,1752754256001,-11175.91894276,0.00021124,2]
[372767030,1752754256223,-13824.08105724,0.00021124,2]
[372767031,1752754256233,-151.0,0.00021187,2]
[372767032,1752754256243,-575.62,0.00021358,2]
[372767033,1752754256252,-22071.1263883,0.000215,2]
[372767034,1752754256262,-151.0,0.000215,2]
[372767035,1752754256271,-151.0,0.000215,2]
[372767036,1752754256282,-151.055976,0.000215,2]
[372767037,1752754256293,-151.0,0.000215,2]
[372767038,1752754256302,-151.0,0.000215,2]
[372767039,1752754256312,-151.0,0.000215,2]
[372767040,1752754256323,-151.0,0.000215,2]
[372767041,1752754256333,-186.757903,0.000215,2]
[372767042,1752754256342,-186.757903,0.000215,2]
[372767043,1752754256352,-151.0,0.000215,2]
[372767044,1752754256361,-151.0,0.000215,2]
[372767045,1752754256371,-151.0,0.000215,2]
[372767046,1752754256381,-151.0,0.000215,2]
[372767047,1752754256391,-2640.10077246,0.000215,2]
[372767048,1752754326950,81706.76500454,0.00017148,2]
[372767050,1752754361347,150.0,0.00026,120]
[372767051,1752754364898,24552.76306055,0.00016349,2]
[372767052,1752754364921,347.23693945,0.00016349,2]
[372767053,1752754393161,-248.23,0.00017138,3]
[372767054,1752754393183,-744.7,0.00017138,3]
[372767055,1752754393204,-4217.2693612,0.00017142,2]
[372767056,1752754393226,-527.65903223,0.00017142,2]
[372767057,1752754393248,-300.0,0.00017146,2]
[372767058,1752754393272,-500.0,0.00017147,2]
[372767059,1752754393297,-500.0,0.00017147,2]
[372767060,1752754393319,-500.0,0.00017147,2]
[372767061,1752754393341,-500.0,0.00017147,2]
[372767062,1752754393362,-500.0,0.00017147,2]
[372767063,1752754393384,-500.0,0.00017147,2]
[372767064,1752754393407,-500.0,0.00017147,2]
[372767065,1752754393429,-500.0,0.00017147,2]
[372767066,1752754393451,-500.0,0.00017147,2]
[372767067,1752754393474,-500.0,0.00017147,2]
[372767068,1752754393495,-500.0,0.00017147,2]
[372767069,1752754393517,-597.91986681,0.00017147,2]
[372767070,1752754393538,-500.0,0.00017147,2]
[372767071,1752754393559,-500.0,0.00017147,2]
[372767072,1752754393582,-500.0,0.00017147,2]
[372767073,1752754393604,-500.0,0.00017147,2]
[372767074,1752754393626,-500.0,0.00017147,2]
[372767075,1752754393648,-500.0,0.00017147,2]
[372767076,1752754393815,-526.0064148,0.00017147,2]
[372767077,1752754393839,-500.0,0.00017147,2]
[372767078,1752754393860,-281.14184526,0.00017147,2]
[372767079,1752754393883,-500.0,0.00017147,2]
[372767080,1752754393907,-500.0,0.00017147,2]
[372767081,1752754393930,-500.0,0.00017147,2]
[372767082,1752754393952,-218.54390676,0.00017147,2]
[372767083,1752754393974,-500.0,0.00017147,2]
[372767084,1752754393995,-500.0,0.00017147,2]
[372767085,1752754394018,-500.0,0.00017147,2]
[372767086,1752754400837,460.0,0.00017147,2]
[372767087,1752754418686,460.0,0.00017147,2]
[372767088,1752754424046,5000.0,0.00017148,2]
[372767089,1752754426901,462.02314404,0.00017147,2]
[372767090,1752754441500,5000.0,0.00017148,2]
[372767091,1752754442361,300.0,0.00017147,2]
[372767092,1752754447777,496.46,0.00017138,3]
[372767093,1752754457101,5000.0,0.00017148,2]
[372767094,1752754458061,527.9,0.00017138,3]
[372767095,1752754461223,460.0,0.00017147,2]
[372767096,1752754470766,460.0,0.00017147,2]
[372767097,1752754472875,5000.0,0.00017148,2]
[372767098,1752754488885,5000.0,0.00017148,2]
[372767099,1752754506301,5000.0,0.00017148,2]
[372767100,1752754519980,1200.0,0.00017147,2]
[372767101,1752754523051,4983.0,0.00017148,2]
[372767102,1752754534946,460.0,0.00017147,2]
[372767103,1752754543468,460.0,0.00017147,2]
[372767104,1752754553315,617.11425433,0.00017147,2]
[372767105,1752754556706,576.6451847,0.00017147,2]
[372767106,1752754556774,500.0,0.00017147,2]
[372767107,1752754557008,500.0,0.00017147,2]
[372767108,1752754557057,500.0,0.00017147,2]
[372767109,1752754557125,500.0,0.00017147,2]
[372767110,1752754557165,414.71853819,0.00017147,2]
[372767111,1752754557289,500.0,0.00017147,2]
[372767112,1752754557343,500.0,0.00017147,2]
[372767113,1752754561236,654.61,0.00017138,3]
[372767115,1752754561869,460.0,0.00017147,2]
[372767117,1752754565511,300.0,0.00017147,2]
[372767118,1752754568275,527.16458066,0.00017147,2]
[372767119,1752754571339,460.0,0.00017147,2]
[372767120,1752754578607,460.0,0.00017147,2]
[372767121,1752754582459,1200.0,0.00017147,2]
[372767122,1752754631817,10000.0,0.0001622,2]
[372767123,1752754682327,215.01887885,0.00016629,2]